bitfinex/quotes_SOLUSD_20241029
["timestamp","ask_amount","ask_price","bid_price","bid_amount"]
[1730223563731,8.39698018,181.55,181.5,8.39698018]
[1730223564422,8.39698018,181.54,181.49,8.39698018]
[1730223565629,23.77598018,181.56,181.5,8.39698018]
[1730223566225,8.39698018,181.56,181.5,8.39698018]
[1730223566455,8.39698018,181.57,181.52,8.39698018]
[1730223567147,8.39698018,181.57,181.46,0.1]
[1730223567353,8.39698018,181.57,181.51,8.39698018]
[1730223567558,8.39698018,181.55,181.5,8.39698018]
[1730223567851,8.39698018,181.54,181.49,8.39698018]
[1730223569762,5.69892513,181.58,181.53,8.39698018]
[1730223569964,5.69892513,181.58,181.56,8.39698018]
[1730223570475,5.69892513,181.58,181.55,8.39698018]
[1730223571254,5.69892513,181.58,181.54,8.39698018]
[1730223571749,8.39698018,181.6,181.54,8.39698018]
[1730223572057,8.39698018,181.59,181.54,8.39698018]
[1730223572261,8.39698018,181.58,181.53,8.39698018]
[1730223572463,8.39698018,181.59,181.54,8.39698018]
[1730223573050,8.39698018,181.59,181.55,8.39698018]
[1730223573252,8.39698018,181.6,181.55,8.39698018]
[1730223573763,16.2579,181.65,181.57,8.39698018]
[1730223573963,8.39698018,181.62,181.57,8.39698018]
[1730223574151,8.39698018,181.61,181.56,8.39698018]
[1730223574464,8.39698018,181.59,181.54,8.39698018]
[1730223574837,8.39698018,181.59,181.54,8.34383818]
[1730223576441,8.39698018,181.59,181.55,8.39698018]
[1730223577367,8.39698018,181.6,181.55,8.39698018]
[1730223579277,8.39698018,181.59,181.54,10.29690643]
[1730223579479,5.5054,181.64,181.51,6.5337]
[1730223579480,8.39698018,181.56,181.51,6.5337]
[1730223579654,8.39698018,181.56,181.51,8.39698018]
[1730223579974,8.39698018,181.55,181.5,8.39698018]
[1730223580141,8.39698018,181.52,181.48,4.57639439]
[1730223580346,8.39698018,181.54,181.49,8.39698018]
[1730223580646,8.39698018,181.54,181.5,8.39698018]
[1730223581576,8.39698018,181.54,181.49,8.39698018]
[1730223584561,8.39698018,181.55,181.5,8.39698018]
[1730223584868,8.39698018,181.54,181.49,8.39698018]
[1730223585262,16.5401,181.57,181.5,8.39698018]
[1730223585568,8.39698018,181.54,181.49,8.39698018]
[1730223586663,8.39698018,181.53,181.48,14.81599879]
[1730223586870,8.39698018,181.53,181.49,8.39698018]
[1730223587168,8.39698018,181.53,181.48,14.81599879]
[1730223589468,8.39698018,181.53,181.49,8.39698018]
[1730223590070,8.39698018,181.53,181.48,14.81599879]
[1730223590442,16.5401,181.57,181.49,8.39698018]
[1730223590658,8.39698018,181.53,181.49,8.39698018]
[1730223591353,16.5401,181.57,181.5,23.776884]
[1730223591676,15.4018,181.62,181.54,8.39698018]
[1730223591965,8.39698018,181.56,181.52,23.776884]
[1730223593069,8.39698018,181.55,181.51,23.776884]
[1730223595275,8.39698018,181.55,181.51,32.17386418]
[1730223595858,15.4018,181.62,181.53,8.39698018]
[1730223596076,15.4018,181.62,181.54,8.39698018]
[1730223596281,8.39698018,181.61,181.55,8.39698018]
[1730223596584,8.39698018,181.59,181.55,23.776884]
[1730223596890,8.39698018,181.57,181.5,4.67639439]
[1730223597069,8.39698018,181.57,181.53,23.776884]
[1730223597264,8.39698018,181.58,181.53,32.17386418]
[1730223598691,48.98972072,181.62,181.53,32.17386418]
[1730223598985,8.39698018,181.58,181.53,32.17386418]
[1730223601093,8.39698018,181.58,181.53,34.07192392]
[1730223601383,15.4018,181.62,181.54,8.39698018]
[1730223601594,8.39698018,181.59,181.54,8.39698018]
[1730223602363,8.39698018,181.58,181.53,34.07192392]
[1730223606481,15.4018,181.62,181.54,8.39698018]
[1730223606680,8.39698018,181.59,181.54,8.39698018]
[1730223607282,15.4018,181.62,181.54,8.39698018]
[1730223607490,8.39698018,181.61,181.56,8.39698018]
[1730223608372,8.39698018,181.6,181.55,8.39698018]
[1730223608676,8.39698018,181.59,181.54,8.39698018]
[1730223608994,8.39698018,181.6,181.55,8.39698018]
[1730223609496,8.39698018,181.59,181.54,8.39698018]
[1730223610078,8.39698018,181.6,181.55,32.17386418]
[1730223610393,8.39698018,181.6,181.55,8.39698018]
[1730223610599,8.39698018,181.61,181.56,8.39698018]
[1730223611092,8.39698018,181.6,181.55,8.39698018]
[1730223611279,8.39698018,181.6,181.56,23.776884]
[1730223611479,8.39698018,181.62,181.57,8.39698018]
[1730223612700,8.39698018,181.62,181.56,8.39698018]
[1730223613194,8.39698018,181.62,181.57,32.17386418]
[1730223613498,8.39698018,181.64,181.59,8.39698018]
[1730223614772,15.8968,181.67,181.59,8.39698018]
[1730223614979,15.8968,181.67,181.62,8.39698018]
[1730223615178,24.29378018,181.67,181.62,8.39698018]
[1730223615691,24.29378018,181.67,181.61,8.39698018]
[1730223615891,8.39698018,181.66,181.61,8.39698018]
[1730223616482,8.39698018,181.63,181.57,23.776884]
[1730223616692,8.39698018,181.64,181.58,8.39698018]
[1730223616895,8.39698018,181.64,181.59,23.776884]
[1730223617205,8.39698018,181.65,181.6,8.39698018]
[1730223617372,15.8968,181.67,181.61,23.776884]
[1730223617578,8.39698018,181.65,181.61,23.776884]
[1730223617979,8.39698018,181.64,181.58,8.39698018]
[1730223618283,8.39698018,181.62,181.57,8.39698018]
[1730223618481,8.39698018,181.63,181.58,8.39698018]
[1730223619082,8.39698018,181.62,181.57,8.39698018]
[1730223621500,8.39698018,181.63,181.58,8.39698018]
[1730223621804,15.8968,181.67,181.57,23.776884]
[1730223621805,8.39698018,181.65,181.59,8.39698018]
[1730223622109,24.29378018,181.67,181.62,8.39698018]
[1730223622408,24.29378018,181.67,181.61,8.39698018]
[1730223622593,8.39698018,181.66,181.61,23.776884]
[1730223622795,8.39698018,181.64,181.61,23.776884]
[1730223622997,8.39698018,181.62,181.57,23.776884]
[1730223623205,8.39698018,181.61,181.57,23.776884]
[1730223623405,8.39698018,181.63,181.58,8.39698018]
[1730223623994,8.39698018,181.64,181.58,8.39698018]
[1730223624299,8.39698018,181.63,181.58,8.39698018]
[1730223624484,15.8968,181.67,181.57,23.776884]
[1730223624485,8.39698018,181.62,181.57,23.776884]
[1730223624684,8.39698018,181.6,181.57,23.776884]
[1730223624889,8.39698018,181.61,181.57,23.776884]
[1730223625688,8.39698018,181.62,181.57,32.17386418]
[1730223625887,8.39698018,181.63,181.57,32.17386418]
[1730223626504,8.39698018,181.64,181.59,8.39698018]
[1730223626685,8.39698018,181.65,181.59,8.39698018]
[1730223626889,8.39698018,181.63,181.58,8.39698018]
[1730223627499,8.39698018,181.61,181.57,23.776884]
[1730223627705,21.4013,181.67,181.55,8.39698018]
[1730223627914,8.39698018,181.61,181.55,8.39698018]
[1730223628083,8.39698018,181.61,181.56,8.39698018]
[1730223629411,21.4013,181.67,181.58,8.39698018]
[1730223629412,15.8968,181.67,181.58,8.39698018]
[1730223629588,8.39698018,181.63,181.54,23.776884]
[1730223629791,8.39698018,181.64,181.59,8.39698018]
[1730223629987,8.39698018,181.66,181.6,8.39698018]
[1730223630288,15.8968,181.67,181.62,8.39698018]
[1730223630622,15.2365,181.72,181.65,8.39698018]
[1730223630786,8.39698018,181.7,181.65,8.39698018]
[1730223630990,8.39698018,181.7,181.64,8.39698018]
[1730223632002,8.39698018,181.69,181.6,0.1]
[1730223632199,8.39698018,181.7,181.65,8.39698018]
[1730223632399,8.39698018,181.71,181.65,8.39698018]
[1730223633397,8.39698018,181.71,181.66,8.39698018]
[1730223633595,23.63348018,181.72,181.66,8.39698018]
[1730223633897,15.2365,181.72,181.68,8.39698018]
[1730223635106,15.2365,181.72,181.67,8.39698018]
[1730223635992,23.63348018,181.72,181.67,8.39698018]
[1730223636702,15.2365,181.72,181.67,8.39698018]
[1730223636899,15.2365,181.72,181.62,33.58792072]
[1730223636900,15.2365,181.72,181.68,8.39698018]
[1730223637111,14.83418018,181.74,181.69,8.39698018]
[1730223637298,5.69501154,181.79,181.72,8.39698018]
[1730223637500,8.39698018,181.79,181.73,8.39698018]
[1730223637820,8.39698018,181.76,181.7,8.39698018]
[1730223639013,8.39698018,181.73,181.68,8.39698018]
[1730223639225,8.39698018,181.72,181.67,32.17386418]
[1730223639393,8.39698018,181.72,181.67,8.39698018]
[1730223639591,6.4878,181.77,181.67,8.39698018]
[1730223639592,8.39698018,181.73,181.67,8.39698018]
[1730223640016,8.39698018,181.73,181.68,8.39698018]
[1730223641519,8.39698018,181.73,181.67,8.39698018]
[1730223642717,8.39698018,181.72,181.67,8.39698018]
[1730223643224,8.39698018,181.71,181.66,8.39698018]
[1730223643604,8.39698018,181.7,181.64,10.24715472]
[1730223643796,8.39698018,181.69,181.61,11.32653693]
[1730223643999,8.39698018,181.69,181.64,8.39698018]
[1730223644303,8.39698018,181.68,181.63,8.39698018]
[1730223644703,8.39698018,181.69,181.64,8.39698018]
[1730223645735,8.39698018,181.7,181.65,8.39698018]
[1730223646804,8.39698018,181.69,181.64,8.39698018]
[1730223648823,16.2423,181.72,181.67,8.39698018]
[1730223649127,16.2423,181.72,181.68,8.39698018]
[1730223650321,16.2423,181.72,181.67,8.39698018]
[1730223651208,24.63928018,181.72,181.67,8.39698018]
[1730223652306,24.63928018,181.72,181.65,8.39698018]
[1730223652307,8.39698018,181.71,181.65,8.39698018]
[1730223652925,8.39698018,181.68,181.61,6.774534]
[1730223653101,8.39698018,181.68,181.63,8.39698018]
[1730223653499,8.39698018,181.69,181.63,8.39698018]
[1730223654719,8.39698018,181.69,181.64,8.39698018]
[1730223654918,8.39698018,181.7,181.65,0.12549]
[1730223655629,24.63928018,181.72,181.67,8.52247018]
[1730223656627,16.2423,181.72,181.69,0.12549]
[1730223656999,24.63928018,181.72,181.69,0.12549]
[1730223657403,24.63928018,181.72,181.68,0.12549]
[1730223657609,8.39698018,181.7,181.68,0.12549]
[1730223658106,8.39698018,181.69,181.65,0.12549]
[1730223658319,8.39698018,181.69,181.64,0.12549]
[1730223658529,8.39698018,181.68,181.63,8.39698018]
[1730223659216,8.39698018,181.69,181.64,8.39698018]
[1730223659834,8.39698018,181.69,181.65,0.12549]
[1730223660333,6.0464,181.7,181.65,8.52247018]
[1730223660627,14.44338018,181.7,181.65,8.52247018]
[1730223661209,14.44338018,181.7,181.65,0.12549]
[1730223662736,8.39698018,181.68,181.65,0.12549]
[1730223663437,8.39698018,181.68,181.64,0.12549]
[1730223663610,8.39698018,181.68,181.63,0.12549]
[1730223663818,8.39698018,181.66,181.61,8.39698018]
[1730223664325,8.39698018,181.65,181.6,8.39698018]
[1730223665829,8.39698018,181.65,181.61,0.12549]
[1730223666444,8.39698018,181.65,181.61,20.12549]
[1730223666734,8.39698018,181.66,181.61,28.52247018]
[1730223667118,8.39698018,181.67,181.62,8.39698018]
[1730223667435,8.39698018,181.67,181.63,20.12549]
[1730223668646,8.39698018,181.65,181.63,20.12549]
[1730223668935,8.39698018,181.64,181.63,0.12549]
[1730223669542,24.73998018,181.65,181.63,0.12549]
[1730223671857,16.343,181.65,181.63,0.12549]
[1730223672061,8.39698018,181.64,181.61,0.12549]
[1730223672244,24.73998018,181.65,181.61,0.12549]
[1730223673161,15.3269,181.69,181.63,8.39698018]
[1730223673359,23.72388018,181.69,181.64,8.52247018]
[1730223674338,8.39698018,181.68,181.64,20.12549]
[1730223674661,16.3207,181.74,181.66,8.39698018]
[1730223674841,8.39698018,181.71,181.67,0.12549]
[1730223676126,8.39698018,181.69,181.66,20.12549]
[1730223677131,8.39698018,181.69,181.65,20.12549]
[1730223677331,8.39698018,181.7,181.65,28.52247018]
[1730223677532,8.39698018,181.7,181.67,0.12549]
[1730223677949,8.39698018,181.69,181.67,0.12549]
[1730223678540,8.39698018,181.68,181.66,0.12549]
[1730223679135,8.39698018,181.68,181.65,0.12549]
[1730223680057,8.39698018,181.69,181.65,0.12549]
[1730223680236,8.39698018,181.69,181.65,20.12549]
[1730223680936,8.39698018,181.67,181.65,0.12549]
[1730223681137,8.39698018,181.67,181.64,0.12549]
[1730223682158,8.39698018,181.66,181.64,0.12549]
[1730223682758,8.39698018,181.66,181.63,0.12549]
[1730223682962,8.39698018,181.65,181.63,0.12549]
[1730223683133,8.39698018,181.65,181.6,8.39698018]
[1730223683330,8.39698018,181.65,181.56,22.2704]
[1730223683331,8.39698018,181.64,181.59,8.39698018]
[1730223684464,8.39698018,181.64,181.6,20.12549]
[1730223685455,22.2173,181.68,181.6,20.12549]
[1730223685667,8.39698018,181.65,181.6,28.52247018]
[1730223686754,5.5045,181.67,181.6,28.52247018]
[1730223686755,8.39698018,181.66,181.61,8.39698018]
[1730223686964,13.90148018,181.67,181.62,8.39698018]
[1730223687341,5.5045,181.67,181.63,0.12549]
[1730223687544,13.90148018,181.67,181.63,0.12549]
[1730223688055,8.39698018,181.66,181.63,0.12549]
[1730223688262,8.39698018,181.66,181.62,0.12549]
[1730223689553,8.39698018,181.64,181.62,0.12549]
[1730223690260,8.39698018,181.64,181.61,0.12549]
[1730223693777,8.39698018,181.63,181.6,0.12549]
[1730223693947,8.39698018,181.63,181.59,0.12549]
[1730223695059,0.1,181.67,181.59,0.12549]
[1730223695060,8.39698018,181.64,181.59,28.52247018]
[1730223698371,8.39698018,181.62,181.59,20.12549]
[1730223698676,8.39698018,181.64,181.59,28.52247018]
[1730223701377,33.43636861,181.68,181.62,8.39698018]
[1730223701554,8.39698018,181.66,181.62,0.12549]
[1730223701967,8.39698018,181.65,181.62,0.12549]
[1730223703162,8.39698018,181.66,181.62,0.12549]
[1730223704271,8.39698018,181.65,181.61,20.12549]
[1730223704574,8.39698018,181.64,181.61,20.12549]
[1730223704959,8.39698018,181.64,181.6,20.12549]
[1730223706269,8.39698018,181.65,181.61,20.0]
[1730223706479,8.39698018,181.65,181.62,0.12549]
[1730223706785,8.39698018,181.66,181.62,0.12549]
[1730223706983,27.93216861,181.68,181.63,8.39698018]
[1730223707192,36.32914879,181.68,181.65,0.12549]
[1730223707393,8.39698018,181.67,181.65,0.12549]
[1730223709268,5.71486861,181.68,181.66,0.12549]
[1730223709683,8.39698018,181.7,181.66,0.12549]
[1730223710787,19.6211833,181.71,181.66,0.12549]
[1730223710995,5.72100312,181.71,181.66,8.52247018]
[1730223711175,5.72100312,181.71,181.68,0.12549]
[1730223711487,8.39698018,181.72,181.68,0.12549]
[1730223713466,8.39698018,181.69,181.65,0.12549]
[1730223713699,8.39698018,181.69,181.65,20.12549]
[1730223715503,8.39698018,181.67,181.59,20.0]
[1730223715789,8.39698018,181.68,181.63,28.39698018]
[1730223715970,8.39698018,181.71,181.66,8.39698018]
[1730223716171,13.89988018,181.72,181.67,8.39698018]
[1730223716589,13.89988018,181.72,181.66,8.39698018]
[1730223716787,13.89988018,181.72,181.67,0.12549]
[1730223717295,8.39698018,181.71,181.67,0.12549]
[1730223718283,8.39698018,181.7,181.67,0.12549]
[1730223718678,8.39698018,181.72,181.67,8.52247018]
[1730223719280,8.39698018,181.72,181.67,0.12549]
[1730223719478,21.0102,181.73,181.67,0.12549]
[1730223719676,8.39698018,181.7,181.66,20.12549]
[1730223719902,8.39698018,181.71,181.66,28.52247018]
[1730223720694,8.39698018,181.7,181.66,0.12549]
[1730223720991,8.39698018,181.7,181.66,20.12549]
[1730223722289,8.39698018,181.67,181.59,20.0]
[1730223722491,8.39698018,181.7,181.65,8.39698018]
[1730223722685,8.39698018,181.71,181.65,8.39698018]
[1730223722905,8.39698018,181.7,181.65,8.39698018]
[1730223723606,8.39698018,181.69,181.65,20.12549]
[1730223724181,8.39698018,181.68,181.65,0.12549]
[1730223725991,8.39698018,181.66,181.64,0.12549]
[1730223726408,8.39698018,181.66,181.63,0.12549]
[1730223726594,39.97372072,181.71,181.63,0.12549]
[1730223726595,8.39698018,181.65,181.63,0.12549]
[1730223726910,8.39698018,181.65,181.62,0.12549]
[1730223727201,8.39698018,181.64,181.62,0.12549]
[1730223727416,8.39698018,181.64,181.6,20.0]
[1730223727582,8.39698018,181.63,181.58,8.39698018]
[1730223728323,8.39698018,181.64,181.59,8.39698018]
[1730223728811,8.39698018,181.64,181.6,0.12549]
[1730223729109,8.39698018,181.64,181.6,20.12549]
[1730223729889,8.39698018,181.63,181.6,20.12549]
[1730223733603,8.39698018,181.64,181.6,20.12549]
[1730223735011,8.39698018,181.65,181.6,8.52247018]
[1730223735211,8.39698018,181.65,181.62,0.12549]
[1730223735698,8.39698018,181.64,181.62,0.12549]
[1730223736101,8.39698018,181.63,181.61,0.12549]
[1730223736325,8.39698018,181.64,181.6,0.12549]
[1730223736494,8.39698018,181.64,181.6,20.12549]
[1730223736694,8.39698018,181.64,181.6,28.52247018]
[1730223737220,8.39698018,181.64,181.6,20.12549]
[1730223737396,8.39698018,181.63,181.6,20.12549]
[1730223737728,8.39698018,181.64,181.6,0.12549]
[1730223738128,8.39698018,181.64,181.6,20.12549]
[1730223739112,8.39698018,181.62,181.59,0.12549]
[1730223739307,8.39698018,181.63,181.58,8.52247018]
[1730223740031,8.39698018,181.62,181.58,0.12549]
[1730223740512,8.39698018,181.63,181.58,28.52247018]
[1730223742631,8.39698018,181.62,181.58,0.12549]
[1730223744951,8.39698018,181.63,181.58,0.12549]
[1730223745135,8.39698018,181.63,181.58,8.52247018]
[1730223746349,8.39698018,181.63,181.58,0.12549]
[1730223746548,8.39698018,181.62,181.58,20.12549]
[1730223747044,8.39698018,181.62,181.58,0.12549]
[1730223747246,8.39698018,181.61,181.57,20.12549]
[1730223748651,8.39698018,181.6,181.57,20.12549]
[1730223748855,8.39698018,181.6,181.56,20.12549]
[1730223749342,8.39698018,181.61,181.57,20.0]
[1730223749535,8.39698018,181.61,181.58,0.12549]
[1730223751453,8.39698018,181.6,181.58,0.12549]
[1730223751760,8.39698018,181.6,181.57,0.12549]
[1730223752549,8.39698018,181.61,181.57,20.12549]
[1730223754657,8.39698018,181.58,181.56,0.12549]
[1730223754864,8.39698018,181.57,181.56,0.12549]
[1730223758081,13.90448018,181.57,181.56,0.12549]
[1730223758362,8.39698018,181.57,181.56,0.12549]
[1730223765371,13.90448018,181.57,181.56,0.12549]
[1730223765672,8.39698018,181.57,181.56,0.12549]
[1730223766951,8.39698018,181.58,181.56,0.12549]
[1730223767363,8.39698018,181.57,181.56,0.12549]
[1730223772687,8.39698018,181.59,181.56,0.12549]
[1730223772871,8.39698018,181.59,181.55,0.12549]
[1730223773481,22.30665577,181.6,181.55,8.52247018]
[1730223773656,5.72035577,181.6,181.56,8.39698018]
[1730223773857,8.39698018,181.61,181.57,8.52247018]
[1730223774071,8.39698018,181.6,181.57,0.12549]
[1730223774459,8.39698018,181.59,181.57,0.12549]
[1730223774985,8.39698018,181.58,181.57,0.12549]
[1730223778992,13.90358018,181.6,181.57,0.12549]
[1730223779284,8.39698018,181.6,181.56,8.52247018]
[1730223780170,13.90318018,181.62,181.58,0.12549]
[1730223780567,8.39698018,181.61,181.58,0.12549]
[1730223780769,8.39698018,181.6,181.58,0.12549]
[1730223781767,8.39698018,181.59,181.58,0.12549]
[1730223783702,8.39698018,181.59,181.53,0.12549]
[1730223783877,8.39698018,181.58,181.54,20.0]
[1730223784076,8.39698018,181.58,181.55,0.12549]
[1730223785079,8.39698018,181.58,181.55,20.12549]
[1730223785283,8.39698018,181.57,181.55,0.12549]
[1730223785485,8.39698018,181.58,181.55,0.12549]
[1730223785686,8.39698018,181.58,181.54,8.52247018]
[1730223786808,8.39698018,181.58,181.53,8.52247018]
[1730223787010,8.39698018,181.58,181.54,8.39698018]
[1730223787187,8.39698018,181.59,181.55,0.12549]
[1730223789887,5.71101387,181.61,181.57,0.12549]
[1730223790087,5.71101387,181.61,181.59,0.12549]
[1730223790405,8.39698018,181.62,181.59,0.12549]
[1730223790601,8.39698018,181.63,181.59,0.12549]
[1730223791091,8.39698018,181.62,181.59,0.12549]
[1730223792500,8.39698018,181.61,181.58,0.12549]
[1730223792808,8.39698018,181.6,181.57,0.12549]
[1730223793183,8.39698018,181.61,181.57,0.12549]
[1730223793806,8.39698018,181.62,181.59,0.12549]
[1730223794304,8.39698018,181.61,181.59,0.12549]
[1730223794484,8.39698018,181.61,181.58,0.12549]
[1730223794678,8.39698018,181.61,181.57,0.12549]
[1730223794879,8.39698018,181.6,181.57,0.12549]
[1730223795081,8.39698018,181.6,181.56,20.12549]
[1730223795418,8.39698018,181.59,181.56,20.12549]
[1730223795706,8.39698018,181.63,181.59,0.12549]
[1730223795887,8.39698018,181.61,181.59,0.12549]
[1730223796082,8.39698018,181.62,181.59,0.12549]
[1730223797110,8.39698018,181.61,181.57,0.12549]
[1730223797412,8.39698018,181.61,181.57,8.52247018]
[1730223798713,8.39698018,181.61,181.57,0.12549]
[1730223799708,24.95278018,181.64,181.59,8.52247018]
[1730223800018,8.39698018,181.63,181.6,0.12549]
[1730223800405,14.10675661,181.65,181.6,8.52247018]
[1730223800800,14.10675661,181.65,181.62,0.12549]
[1730223800801,5.70977643,181.65,181.62,0.12549]
[1730223800994,14.10675661,181.65,181.62,0.12549]
[1730223801193,14.10675661,181.65,181.61,0.12549]
[1730223801494,5.70977643,181.65,181.61,0.12549]
[1730223801694,5.70977643,181.65,181.63,0.12549]
[1730223802515,5.70977643,181.65,181.64,8.52247018]
[1730223802709,8.39698018,181.69,181.65,0.12549]
[1730223802917,8.39698018,181.68,181.65,0.12549]
[1730223803420,8.39698018,181.69,181.65,0.12549]
[1730223804009,5.5032,181.71,181.65,0.12549]
[1730223804219,8.39698018,181.67,181.65,0.12549]
[1730223804694,8.39698018,181.67,181.63,20.0]
[1730223804695,8.39698018,181.67,181.64,0.12549]
[1730223806519,8.39698018,181.67,181.64,20.12549]
[1730223806733,8.39698018,181.67,181.63,0.12549]
[1730223806903,8.39698018,181.67,181.63,20.12549]
[1730223807823,8.39698018,181.67,181.63,8.52247018]
[1730223808031,16.1082,181.72,181.65,0.12549]
[1730223808328,8.39698018,181.68,181.65,0.12549]
[1730223809223,8.39698018,181.67,181.65,0.12549]
[1730223809427,8.39698018,181.66,181.65,0.12549]
[1730223810224,8.39698018,181.66,181.61,0.12549]
[1730223810532,8.39698018,181.65,181.61,20.12549]
[1730223811924,8.39698018,181.66,181.61,8.52247018]
[1730223813634,8.39698018,181.65,181.61,0.12549]
[1730223814105,8.39698018,181.65,181.61,20.12549]
[1730223814635,8.39698018,181.64,181.61,0.12549]
[1730223814812,8.39698018,181.64,181.6,20.12549]
[1730223815014,8.39698018,181.64,181.62,0.12549]
[1730223817808,8.39698018,181.65,181.62,0.12549]
[1730223818617,8.39698018,181.64,181.62,0.12549]
[1730223818934,8.39698018,181.64,181.61,0.12549]
[1730223820830,8.39698018,181.63,181.61,0.12549]
[1730223821230,5.5044,181.67,181.52,16.6003]
[1730223821231,8.39698018,181.62,181.52,16.6003]
[1730223821406,8.39698018,181.6,181.55,8.39698018]
[1730223821609,8.39698018,181.61,181.57,8.39698018]
[1730223822024,8.39698018,181.62,181.57,8.39698018]
[1730223822639,8.39698018,181.62,181.58,20.0]
[1730223822819,8.39698018,181.62,181.59,0.12549]
[1730223823017,8.39698018,181.61,181.52,16.6003]
[1730223823333,8.39698018,181.57,181.53,8.39698018]
[1730223823830,8.39698018,181.58,181.53,8.39698018]
[1730223824027,8.39698018,181.57,181.53,8.39698018]
[1730223824435,8.39698018,181.57,181.54,0.12549]
[1730223824811,8.39698018,181.58,181.54,0.12549]
[1730223826522,5.5064,181.61,181.57,8.39698018]
[1730223826523,8.39698018,181.61,181.57,8.39698018]
[1730223826730,8.39698018,181.6,181.56,0.12549]
[1730223827334,8.39698018,181.61,181.56,8.52247018]
[1730223827841,8.39698018,181.6,181.56,0.12549]
[1730223831024,5.5063,181.61,181.56,0.12549]
[1730223831025,8.39698018,181.59,181.56,0.12549]
[1730223832226,8.39698018,181.59,181.55,20.12549]
[1730223832641,8.39698018,181.59,181.55,28.52247018]
[1730223834544,8.39698018,181.59,181.55,20.12549]
[1730223834741,8.39698018,181.58,181.54,20.12549]
[1730223835936,8.39698018,181.59,181.54,28.52247018]
[1730223837047,8.39698018,181.6,181.56,0.12549]
[1730223837747,5.5058,181.63,181.56,0.12549]
[1730223838043,8.39698018,181.61,181.56,8.52247018]
[1730223838255,8.39698018,181.62,181.57,8.39698018]
[1730223838571,8.39698018,181.62,181.58,0.12549]
[1730223839532,19.59640046,181.64,181.58,8.52247018]
[1730223839848,8.39698018,181.63,181.58,8.52247018]
[1730223840226,8.39698018,181.62,181.58,0.12549]
[1730223840439,8.39698018,181.61,181.58,0.12549]
[1730223840721,8.39698018,181.6,181.57,0.12549]
[1730223840921,8.39698018,181.59,181.57,0.12549]
[1730223841330,8.39698018,181.59,181.56,0.12549]
[1730223844530,8.39698018,181.59,181.55,20.12549]
[1730223845456,8.39698018,181.58,181.55,0.12549]
[1730223845667,8.39698018,181.57,181.53,20.12549]
[1730223845958,8.39698018,181.58,181.54,20.0]
[1730223846134,8.39698018,181.58,181.55,0.12549]
[1730223847046,13.90388018,181.59,181.55,0.12549]
[1730223847248,5.5069,181.59,181.55,8.52247018]
[1730223847444,8.39698018,181.6,181.55,8.52247018]
[1730223848445,13.90348018,181.61,181.57,0.12549]
[1730223849062,8.39698018,181.6,181.57,0.12549]
[1730223849445,8.39698018,181.6,181.56,0.12549]
[1730223849749,5.5065,181.61,181.55,0.12549]
[1730223849750,8.39698018,181.59,181.55,0.12549]
[1730223849952,5.5065,181.61,181.55,0.12549]
[1730223849953,8.39698018,181.58,181.55,0.12549]
[1730223850463,8.39698018,181.57,181.55,0.12549]
[1730223850964,8.39698018,181.58,181.54,20.12549]
[1730223851656,13.90388018,181.59,181.54,8.52247018]
[1730223853445,13.90388018,181.59,181.51,20.0]
[1730223853637,8.39698018,181.52,181.45,7.58516743]
[1730223853838,8.39698018,181.5,181.45,9.34504761]
[1730223854065,8.39698018,181.51,181.46,8.39698018]
[1730223854846,8.39698018,181.49,181.44,24.07878018]
[1730223855152,8.39698018,181.49,181.45,20.0]
[1730223855754,8.39698018,181.49,181.46,0.12549]
[1730223855952,8.39698018,181.5,181.46,0.12549]
[1730223856362,8.39698018,181.49,181.46,0.12549]
[1730223856568,8.39698018,181.47,181.41,20.0]
[1730223856768,8.39698018,181.47,181.43,20.0]
[1730223857365,8.39698018,181.48,181.43,28.39698018]
[1730223857867,8.39698018,181.48,181.44,0.12549]
[1730223858165,8.39698018,181.49,181.44,8.39698018]
[1730223858340,8.39698018,181.48,181.43,8.39698018]
[1730223858539,8.39698018,181.48,181.44,20.0]
[1730223859081,8.39698018,181.49,181.44,28.39698018]
[1730223859367,8.39698018,181.48,181.44,20.12549]
[1730223859566,5.5093,181.52,181.44,20.12549]
[1730223859567,8.39698018,181.49,181.44,20.12549]
[1730223859965,8.39698018,181.49,181.45,20.0]
[1730223860572,8.39698018,181.49,181.44,8.39698018]
[1730223860775,8.39698018,181.49,181.45,20.0]
[1730223863169,8.39698018,181.49,181.39,0.12549]
[1730223863356,8.39698018,181.48,181.45,20.12549]
[1730223863555,8.39698018,181.49,181.45,20.12549]
[1730223864554,8.39698018,181.49,181.46,20.0]
[1730223865070,8.39698018,181.49,181.45,20.12549]
[1730223865263,13.90668018,181.5,181.38,20.0]
[1730223865470,5.68724819,181.52,181.47,20.0]